Cogmind - Beta 10.2 *** ADVENTURER MODE // 2021.01.14 @ 12:48:12 Player: Frosst Result: Destroyed by Y-45 Defender with Beam Rifle Performance ------------- Evolutions (1) 500 Regions Visited (3) 600 Robots Destroyed (22) 110 Value Destroyed (323) 323 Prototype IDs (0) 0 Alien Tech Used (0) 0 Bonus (0) 0 TOTAL SCORE: 1533 Bonus ------- None Cogmind --------- Core Integrity 0/400 Matter 300/300 Energy 100/100 System Corruption 0% Temperature Cool (9) Movement Core (300) Ox5 Location -9/Materials Parts ------- > --- POWER (2) -------- (None) > --- PROPULSION (2) --- (None) > --- UTILITY (2) ------ Medium Storage Unit Medium Storage Unit > --- WEAPON (3) ------- (None) > --- INVENTORY (12) --- Light Ion Engine Wheel Wheel Wheel Wheel Compact Wheel Medium Laser Medium Laser Small Laser Mining Laser Mining Laser Welding Torch Peak State ------------ > --- POWER ------------ Light Ion Engine > --- PROPULSION ------- Aluminum Leg Hover Unit > --- UTILITY ---------- Medium Storage Unit Medium Storage Unit > --- WEAPON ----------- Small Laser Mining Laser > --- INVENTORY -------- Wheel Wheel Wheel Compact Wheel EM Pulse Gun Medium Laser Medium Laser Mining Laser Mining Laser Welding Torch [Rating: 8] Favorites ----------- Power Light Ion Engine Engine Light Ion Engine Propulsion Hover Unit Leg Aluminum Leg Wheel Wheel Hover Unit Hover Unit Utility Medium Storage Unit Storage Medium Storage Unit Weapon Small Laser Energy Gun Small Laser Special Weapon Welding Torch Build | -11 -10 -10 -9 ------- Run | Scr Mat Min Mat Slots Evolved 2 | . . . 2 Power 1 | . . . 1 Propulsion . | . . . . Utility . | . . . . Weapon 1 | . . . 1 Parts Attached 17 | 6 8 3 . Power 1 | . 1 . . Engine 1 | . 1 . . Core . | . . . . Reactor . | . . . . Propulsion 5 | 2 2 1 . Treads . | . . . . Leg 2 | . 1 1 . Wheel 2 | 2 . . . Hover 1 | . 1 . . Flight . | . . . . Utility 2 | . 2 . . Device . | . . . . Storage 2 | . 2 . . Processor . | . . . . Hackware . | . . . . Protection . | . . . . Artifact . | . . . . Weapon 9 | 4 3 2 . Energy Gun 7 | 4 2 1 . Energy Cannon . | . . . . Ballistic Gun . | . . . . Ballistic Cannon . | . . . . Launcher . | . . . . Special Weapon 2 | . 1 1 . Impact Weapon . | . . . . Slashing Weapon . | . . . . Piercing Weapon . | . . . . Special Melee Weapon . | . . . . Unidentified Prototypes . | . . . . Parts Lost 5 | . . 1 4 Power 1 | . . . 1 Propulsion 2 | . . 1 1 Utility . | . . . . Weapon 2 | . . . 2 Highest Loss Streak 4 | . . 1 4 Average Slot Usage (%) 80 | . 84 85 59 Engine 12 | . 12 14 8 Leg 2 | . . 2 10 Wheel 1 | . 2 . . Hover 10 | . 12 12 . Storage 26 | . 26 28 22 Energy Gun 13 | . 15 14 9 Special Weapon 12 | . 12 14 8 Naked Turns . | . . . . Heaviest Build 22 | 4 21 22 22 Greatest Support 20 | 20 20 10 10 Greatest Overweight (x) 5 | . 3 3 5 Average Overweight (x) 2 | . 2 2 1 Largest Inventory Capacity 12 | 4 12 12 12 Average Capacity 11 | 4 11 12 12 Most Carried 12 | 2 12 12 12 Average Carried 10 | . 9 10 12 Final Capacity 12 | 4 12 12 12 Final Carried 12 | 2 11 12 12 Class Distribution -------------------- 100% | Mutant Dominant Class ---------------- Mutant | -10/Materials Mutant | -10/Mines Mutant | -9/Materials Resources | -11 -10 -10 -9 ----------- Run | Scr Mat Min Mat Matter Collected 313 | 110 178 25 . Remotely . | . . . . Salvage Created 621 | 72 260 209 80 Parts 53 | 5 20 22 6 Haulers Intercepted . | . . . . Recyclers Shooed 4 | . 1 1 2 Parts Field Recycled . | . . . . Retrieved Matter . | . . . . Parts Self-Destructed . | . . . . Prevented . | . . . . Kills | -11 -10 -10 -9 ------- Run | Scr Mat Min Mat Combat Hostiles Destroyed 8 | 1 1 5 1 Guns 6 | 1 1 3 1 AOE 2 | . . 2 . Classes Destroyed 7 | 3 3 1 . Worker 3 | 1 . 2 . Builder 3 | . 3 . . Tunneler 4 | 1 . 2 1 Recycler 1 | . 1 . . Watcher 3 | . 3 . . Swarmer 3 | . . 3 . Grunt 5 | 1 1 2 1 Best Kill Streak 3 | 2 2 3 1 Combat Bots Only 3 | 1 1 3 1 Max Kills in Single Turn 1 | 1 1 1 1 Gunslinging . | . . . . Exploded 1 | . . 1 . Melee . | . . . . Uniques/NPCs Destroyed . | . . . . Combat | -11 -10 -10 -9 -------- Run | Scr Mat Min Mat Damage Taken 931 | 50 73 161 647 Core 506 | . 65 39 402 Absorbed by Shields . | . . . . Core Remaining (%) 79 | 100 . 58 . Volleys Fired 72 | 8 31 24 9 Largest 2 | 2 2 2 2 Hottest 140 | 90 90 140 140 Shots Fired 102 | 16 42 32 12 Gun 86 | 16 38 23 9 Cannon . | . . . . Launcher . | . . . . Special 16 | . 4 9 3 Kinetic . | . . . . Thermal 63 | 8 35 17 3 Explosive . | . . . . Electromagnetic 39 | 8 7 15 9 Robot Hit Streak 14 | 13 5 8 14 Robot Miss Streak 2 | 1 2 1 1 Penetration Max . | . . . . Secondary Targets . | . . . . Shots Hit Robots 70 | 14 27 20 9 Core Hits 31 | 4 11 12 4 Critical Hits . | . . . . Critical Kills . | . . . . Critical Parts Destroyed . | . . . . Melee Attacks . | . . . . Impact . | . . . . Slashing . | . . . . Piercing . | . . . . Sneak Attacks . | . . . . Combat Hostiles . | . . . . Follow-up Attacks . | . . . . Damage Inflicted 1104 | 184 308 413 199 Guns 820 | 184 306 236 94 Cannons . | . . . . Explosions 159 | . . 120 39 Melee . | . . . . Ramming 27 | . . 9 18 Kinetic . | . . . . Thermal 643 | 99 236 221 87 Explosive . | . . . . Electromagnetic 434 | 85 72 183 94 Impact . | . . . . Slashing . | . . . . Piercing . | . . . . Highest Corruption . | . . . . Average Corruption . | . . . . Corruption Purged . | . . . . Overload Shots . | . . . . Overflow Damage . | . . . . Projectiles . | . . . . Explosions . | . . . . Melee . | . . . . Knockbacks . | . . . . Impact . | . . . . Kinetic . | . . . . Secondary . | . . . . Self-Inflicted Damage 71 | . 65 4 2 Shots 1 | . 1 . . Rammed 19 | . . 6 13 Targets Rammed 22 | . . 6 16 Kicked 3 | . . . 3 Crushed . | . . . . Highest Temperature 141 | 141 51 41 25 Average Temperature 19 | 72 7 12 13 Received Heat Transfer 261 | 36 6 63 156 Siege Activations . | . . . . Robots Corrupted . | . . . . Combat Hostiles . | . . . . Parts Fried . | . . . . Impact Corruptions . | . . . . Robots Melted . | . . . . Combat Hostiles . | . . . . Parts Melted . | . . . . Heat Transferred 1433 | 296 562 425 150 Parts Sabotaged . | . . . . Parts Stolen . | . . . . Parts Stripped . | . . . . Power Chain Reactions 3 | . . 2 1 Missiles Intercepted . | . . . . Alert | -11 -10 -10 -9 ------- Run | Scr Mat Min Mat Peak Influence 99 | 30 99 78 48 Initial 18 | . 16 3 18 Average 31 | 10 37 27 29 Maximum Alert Level . | . . . . Low Security (%) 100 | 100 100 100 100 Level 1 . | . . . . Level 2 . | . . . . Level 3 . | . . . . Level 4 . | . . . . Level 5 . | . . . . High Security . | . . . . Max Security . | . . . . Squads Dispatched 2 | . . . 2 Investigation . | . . . . Extermination . | . . . . Reinforcement 2 | . . . 2 Assault . | . . . . Garrison . | . . . . Intercept . | . . . . Construction Impeded . | . . . . Haulers Reinforced . | . . . . Stealth | -11 -10 -10 -9 --------- Run | Scr Mat Min Mat Distress Signals 3 | . . . 3 Communications Jammed . | . . . . Distress Signals . | . . . . Times Spotted 29 | 1 8 5 15 Peak Tracking Total 9 | 1 3 3 9 Tactical Retreats . | . . . . Traps | -11 -10 -10 -9 ------- Run | Scr Mat Min Mat Traps Triggered 3 | . . . 3 Indirectly . | . . . . Trap Hack Attempts . | . . . . Triggered . | . . . . Disarmed . | . . . . Reprogrammed . | . . . . Reused . | . . . . Traps Extracted . | . . . . Installed . | . . . . Triggered . | . . . . Machines | -11 -10 -10 -9 ---------- Run | Scr Mat Min Mat Machines Disabled 1 | . 1 . . Max in Single Turn 1 | . 1 . . Machines Sabotaged . | . . . . Garrisons Compromised . | . . . . Overloaded Fab Kills . | . . . . Fab Network Shutdowns . | . . . . Hacking | -11 -10 -10 -9 --------- Run | Scr Mat Min Mat Machines Accessed 1 | . 1 . . Terminals . | . . . . Fabricators . | . . . . Repair Stations . | . . . . Recycling Units 1 | . 1 . . Scanalyzers . | . . . . Garrison Access . | . . . . Total Hacks 4 | . 4 . . Successful 3 | . 3 . . Failed 1 | . 1 . . Catastrophic . | . . . . Database Lockouts . | . . . . Manual . | . . . . Terminals . | . . . . Fabricators . | . . . . Repair Stations . | . . . . Recycling Units 4 | . 4 . . Scanalyzers . | . . . . Garrison Access . | . . . . Terminal Hacks . | . . . . Fabricator Hacks . | . . . . Repair Station Hacks . | . . . . Recycling Unit Hacks 3 | . 3 . . Recycle Component 1 | . 1 . . Process 1 | . 1 . . Retrieve Matter 1 | . 1 . . Scanalyzer . | . . . . Garrison Access Hacks . | . . . . Unauthorized Hacks . | . . . . Terminals . | . . . . Fabricators . | . . . . Repair Stations . | . . . . Recycling Units . | . . . . Scanalyzers . | . . . . Garrison Access . | . . . . Data Cores Recovered . | . . . . Used . | . . . . Hacking Detections . | . . . . Full Trace Events . | . . . . Feedback Events . | . . . . Feedback Blocked . | . . . . Robot Schematics Acquired . | . . . . Robots Built . | . . . . Matter . | . . . . Time . | . . . . Total Robot Build Rating . | . . . . Part Schematics Acquired . | . . . . Parts Built . | . . . . Matter . | . . . . Time . | . . . . Total Part Build Rating . | . . . . Parts Repaired . | . . . . Time . | . . . . Parts Recycled 1 | . 1 . . Recycled Matter 52 | . 52 . . Retrieved Matter 52 | . 52 . . Retrieved Components . | . . . . Parts Scanalyzed . | . . . . Part Schematics Acquired . | . . . . Parts Damaged . | . . . . Bothacking | -11 -10 -10 -9 ------------ Run | Scr Mat Min Mat Used RIF Installer . | . . . . Robots Hacked . | . . . . Non-combat . | . . . . Combat . | . . . . Robot Hacks Applied . | . . . . Relay Couplers Released . | . . . . Robots Rewired . | . . . . Allies Hacked . | . . . . Hacks Repelled . | . . . . Allies | -11 -10 -10 -9 -------- Run | Scr Mat Min Mat Total Allies . | . . . . Largest Group . | . . . . Highest-Rated Group . | . . . . Highest-Rated Ally . | . . . . Total Orders . | . . . . Ally Attacks . | . . . . Total Damage . | . . . . Kills . | . . . . Allies Corrupted . | . . . . Allies Melted . | . . . . Intel | -11 -10 -10 -9 ------- Run | Scr Mat Min Mat Robot Analysis Total . | . . . . Derelict Logs Recovered . | . . . . Drone Launches . | . . . . Drone Recoveries . | . . . . Exploration | -11 -10 -10 -9 ------------- Run | Scr Mat Min Mat Turns Passed 2443 | 99 946 1042 356 Spaces Moved 1066 | 85 400 414 167 Core 22 | 18 . . 4 Treads . | . . . . Legs 226 | . . 63 163 Wheels 136 | 67 69 . . Hover 682 | . 331 351 . Flight . | . . . . Fastest Speed 50 | 50 80 180 150 Average Speed 203 | 73 212 230 178 Slowest Speed 300 | 80 240 240 300 Overloaded Moves . | . . . . Propulsion Burnouts . | . . . . Robots Hopped . | . . . . Cave-ins Triggered . | . . . . Exploration Rate (%) 22 | 6 24 48 11 Regions Visited 3 Branch Regions 1 Pre-discovered Areas . | . . . . Known Exits Taken . | . . . . Unknown Exits Taken 3 | 1 1 1 . Scrap Searched . | . . . . Spaces Dug . | . . . . Terrain Destroyed 34 | . 29 1 4 Melee . | . . . . Projectile 2 | . . 1 1 AOE 32 | . 29 . 3 Terrain Rammed . | . . . . Walls Destroyed . | . . . . Machines Disabled . | . . . . Actions | -11 -10 -10 -9 --------- Run | Scr Mat Min Mat Total 1200 | 104 456 448 192 Wait . | . . . . Move 1063 | 84 399 413 167 Hop . | . . . . Pick Up 20 | 6 12 2 . Fast Attach . | . . . . Attach 12 | 4 7 1 . Detach 5 | . 5 . . Swap 5 | 2 1 2 . Drop 1 | . 1 . . Fire 72 | 8 31 24 9 Melee . | . . . . Ram 11 | . . 6 5 Kick 11 | . . . 11 Crush . | . . . . Escape Stasis . | . . . . Rewire . | . . . . Trap . | . . . . Miscellaneous . | . . . . Route ------- -11/Scrapyard -10/Materials -10/Mines -9/Materials History --------- Turn | Location | Event 2 | -11/Scrapyard | Met Revision 17 55 | -11/Scrapyard | Discovered new exit (range 8) 100 | -11/Scrapyard | Entered Materials 315 | -10/Materials | Build established: Mutant 391 | -10/Materials | Discovered new exit (range 13) 1046 | -10/Materials | Entered Mines 2036 | -10/Mines | Discovered new exit (range 9) 2088 | -10/Mines | Entered Materials 2088 | -9/Materials | Evolved 2 slots: Power x1, Weapon x1 2431 | -9/Materials | Core integrity fell below 50% 2439 | -9/Materials | Core integrity fell below 20% 2444 | -9/Materials | Destroyed by Y-45 Defender with Beam Rifle Last Messages --------------- 02381_ Slammed into G-34 Mercenary. 02383_ G-34 Mercenary destroyed. 02392_ R-06 Scavenger collects Aluminum Leg. 02396_ R-06 Scavenger collects Ion Engine. 02402_ R-06 Scavenger collects Heat Sink. 02403_ EM Pulse Gun destroyed. 02406_ Kicked S-10 Pest out of the way. 02413_ Slammed into S-10 Pest. 02419_ Aluminum Leg destroyed. 02419_ Slammed into S-10 Pest. 02420_ W-16 Scout distress signal alerts nearby ally. 02422_ Slammed into K-01 Serf. 02425_ Slammed into S-10 Pest. 02427_ S-10 Pest destroyed. 02428_ Slammed into S-10 Pest. 02430_ S-10 Pest destroyed. 02431_ R-06 Scavenger collects Flight Unit. 02434_ Slammed into R-06 Scavenger. 02438_ S-10 Pest destroyed. 02441_ R-06 Scavenger collects Flight Unit. Map ----- +----------------------------------------------------+ | ??????????????????????????????????????# # | | ??????????????????????????????????????# ######## | | ??????????????????????????????????????# #??????? | | ??????????????????????????????????????# #??????? | | ??????????????????????????????????????# #??????? | | ??????????????????????????????????????# #??????? | | ??????????????????????????????????????# #??????? | | ??????????????????????????????????????# #??????? | | ??????????????????????????????????????# #??????? | | ??????????????????????????????????????# #??????? | | ??????????????????????????????????????# +??????? | | ??????????????????????????????????????# #??????? | | ??????????????????????????????????????# #??????? | | ??????????????????????????????????????# #??????? | | ????????????????????????????? ?######## ######?? | | ??????????? ???????????#???? # # ## #?? | | ??????????# ????????? #??? ?# """ # " #?? | | ??????????? #??#+???#+#?? ??+ """ + % #?? | | ???????????? ### #### ### ???# """ # " ##?? | | ????????????? w ^ ????# # "# ##??? | | ?????????????? ?????+ # ####???# | | ???????????????? """ #?????######## #???? | | ?????????????????# """ #????????????# #?? """" | | ?????????????????# ^""" #????????????# # """" | | ?????????????????# Y ############## + """" | | ?????????????????# w%%sY@ # """" | | ?????????????????# %%%%% %%% #?? """" | | ?????????????????# r%Y%% %%% #????""" | | ?????????????????# %##############+#######??????" | | ?????????????????# #???????????????????????????? | | ?????????????????# #???????????????????????????? | | ?????????????????# /???????????????????????????? | | ?????????????????# #???????????????????????????? | | ?????????????????# #???????????????????????????? | | ?????????????????# #???????????????????????????? | | ?????????????????# #???????????????????????????? | | ?????????????????# ????????????????????????????? | | ?????????????????# ????????????????????????????? | | ?????????????????+ ????????????????????????????? | | ?????????????????# ????????????????????????????? | | ?????????????????# ????????????????????????????? | | ?????????????????# ????????????????????????????? | | ??????????????????##+????????????????????????????? | | ?????????????????????????????????????????????????? | | ?????????????????????????????????????????????????? | | ?????????????????????????????????????????????????? | | ?????????????????????????????????????????????????? | | ?????????????????????????????????????????????????? | | ?????????????????????????????????????????????????? | | ?????????????????????????????????????????????????? | +----------------------------------------------------+ Best States ------------- Heat Dissipation 28 Energy Generation 10 Energy Capacity 125 Matter Stores 300 Matter Capacity 300 Sight Range 16 Terrain Scan Density 10 Resistance: KI 20 Resistance: TH 20 Resistance: EX 20 Resistance: EM 20 Resistance: I 20 Resistance: S 20 Resistance: P 20 Evasion (%) 50 Offensive Hacking 10 Item Schematics ----------------- None Robot Schematics ------------------ None Fabricated ------------ Nothing Alien Tech Used ----------------- None Achievements -------------- Uninvited Guest Challenges ------------ None Game ------ Seed RecoilLargeStripper Manual? 0 Play Time 00:19:00 Cumulative 0.8 hours Start 2021.01.14 @ 12:23:49 End 2021.01.14 @ 12:48:12 Sessions 1 Manual Loads 0 Difficulty Adventurer Special Mode None Game No. 3 Rogue 0 Adventurer 3 Explorer 0 Win Type - Total 0 Types 0/0/0/0/0/0/0/0/0 Lore% 0 Gallery% 1 Achievement% 1 Wizard Run 0 Options --------- ASCII 0 Keyboard 0 Movement Mouse Keybinds 0 Fullscreen 2 Font 18/SmallcapsGlow Map View 76x50 Tactical HUD 1 Map Filters NONE Filters NONE Steam 1 RUN: 251bd017-7d2e-4bca-b045-962b5ab825b1